[Event "Late-Titled-Tuesday-Blitz-December-26-2023"]
[Site "Chess.com"]
[Date "2023.12.26"]
[Round "11"]
[White "yaguigor"]
[Black "aksuliini1"]
[Result "0-1"]
[WhiteElo "2574"]
[BlackElo "2504"]
[TimeControl "180+1"]
[EndTime "16:05:08 PST"]
[Termination "aksuliini1 won on time"]

1. e4 {[%clk 0:03:00.9]} 1... c6 {[%clk 0:02:58]} 2. d4 {[%clk 0:02:59.9]} 2...
d5 {[%clk 0:02:58.9]} 3. e5 {[%clk 0:02:59.3]} 3... Bf5 {[%clk 0:02:58.3]} 4. h4
{[%clk 0:02:58.5]} 4... h5 {[%clk 0:02:58]} 5. Bd3 {[%clk 0:02:56.2]} 5... Bxd3
{[%clk 0:02:55.3]} 6. Qxd3 {[%clk 0:02:57.1]} 6... Qa5+ {[%clk 0:02:54.5]} 7.
Nd2 {[%clk 0:02:46.7]} 7... e6 {[%clk 0:02:51.5]} 8. Nf3 {[%clk 0:02:42.7]} 8...
Nh6 {[%clk 0:02:51]} 9. O-O {[%clk 0:02:40.2]} 9... Nf5 {[%clk 0:02:50.6]} 10.
c4 {[%clk 0:02:36.3]} 10... Be7 {[%clk 0:02:44.7]} 11. g3 {[%clk 0:02:25]} 11...
O-O {[%clk 0:02:33.8]} 12. a3 {[%clk 0:02:19]} 12... Rd8 {[%clk 0:02:13.2]} 13.
c5 {[%clk 0:02:17.7]} 13... Qa6 {[%clk 0:02:11.7]} 14. Qc2 {[%clk 0:02:13.6]}
14... Nd7 {[%clk 0:02:06]} 15. b4 {[%clk 0:02:12.6]} 15... b5 {[%clk 0:02:03.2]}
16. Nb3 {[%clk 0:02:00.6]} 16... Qb7 {[%clk 0:01:55.9]} 17. Na5 {[%clk
0:01:59.1]} 17... Qc7 {[%clk 0:01:56]} 18. Bg5 {[%clk 0:01:55]} 18... Nf8 {[%clk
0:01:45.3]} 19. Bxe7 {[%clk 0:01:50.9]} 19... Nxe7 {[%clk 0:01:46.2]} 20. Ng5
{[%clk 0:01:49.5]} 20... Nf5 {[%clk 0:01:41.9]} 21. Qd3 {[%clk 0:01:47.6]} 21...
f6 {[%clk 0:01:40.5]} 22. exf6 {[%clk 0:01:43.8]} 22... gxf6 {[%clk 0:01:41.4]}
23. Nh3 {[%clk 0:01:44.1]} 23... Kf7 {[%clk 0:01:37.2]} 24. Nf4 {[%clk
0:01:42.8]} 24... Ng6 {[%clk 0:01:33.2]} 25. Nxg6 {[%clk 0:01:25.6]} 25... Kxg6
{[%clk 0:01:31.7]} 26. Rfe1 {[%clk 0:01:25.9]} 26... Kf7 {[%clk 0:01:29.3]} 27.
Re2 {[%clk 0:01:25.5]} 27... Rg8 {[%clk 0:01:26.2]} 28. Kf1 {[%clk 0:01:18.4]}
28... Nxh4 {[%clk 0:01:08.5]} 29. Qh7+ {[%clk 0:01:03]} 29... Rg7 {[%clk
0:01:08]} 30. Qxh5+ {[%clk 0:01:03.3]} 30... Ng6 {[%clk 0:01:08.1]} 31. f4
{[%clk 0:00:56.9]} 31... Rh8 {[%clk 0:01:03.3]} 32. Qf3 {[%clk 0:00:54.6]} 32...
Rh3 {[%clk 0:00:45.8]} 33. Rae1 {[%clk 0:00:46.1]} 33... Nf8 {[%clk 0:00:35.5]}
34. Rg2 {[%clk 0:00:43]} 34... Rh1+ {[%clk 0:00:33.5]} 35. Kf2 {[%clk 0:00:42]}
35... Rxe1 {[%clk 0:00:32.5]} 36. Kxe1 {[%clk 0:00:42.9]} 36... Ke7 {[%clk
0:00:28.6]} 37. Rh2 {[%clk 0:00:32.8]} 37... e5 {[%clk 0:00:18.9]} 38. fxe5
{[%clk 0:00:24]} 38... fxe5 {[%clk 0:00:19]} 39. dxe5 {[%clk 0:00:23.8]} 39...
Nd7 {[%clk 0:00:19.4]} 40. Re2 {[%clk 0:00:18.9]} 40... Rg5 {[%clk 0:00:12.4]}
41. Qf4 {[%clk 0:00:16.2]} 41... Rxe5 {[%clk 0:00:09]} 42. Nxc6+ {[%clk
0:00:13.8]} 42... Qxc6 {[%clk 0:00:08]} 43. Rxe5+ {[%clk 0:00:14.2]} 43... Nxe5
{[%clk 0:00:08.4]} 44. Qxe5+ {[%clk 0:00:14.7]} 44... Kf7 {[%clk 0:00:05.9]} 45.
Ke2 {[%clk 0:00:13.2]} 45... Qg6 {[%clk 0:00:02.3]} 46. Qxd5+ {[%clk 0:00:11.9]}
46... Ke8 {[%clk 0:00:02.2]} 47. Qa8+ {[%clk 0:00:10.3]} 47... Ke7 {[%clk
0:00:02.1]} 48. Qxa7+ {[%clk 0:00:11.2]} 48... Ke8 {[%clk 0:00:02.6]} 49. Qb8+
{[%clk 0:00:10.7]} 49... Kf7 {[%clk 0:00:02.3]} 50. Qf4+ {[%clk 0:00:09.3]}
50... Kg8 {[%clk 0:00:01.7]} 51. Qb8+ {[%clk 0:00:07.6]} 51... Kf7 {[%clk
0:00:01.8]} 52. Qc7+ {[%clk 0:00:07.8]} 52... Kg8 {[%clk 0:00:02.3]} 53. Qd8+
{[%clk 0:00:07.7]} 53... Kf7 {[%clk 0:00:02.5]} 54. Qd7+ {[%clk 0:00:07.6]}
54... Kg8 {[%clk 0:00:03.1]} 55. Qd3 {[%clk 0:00:07.6]} 55... Qe6+ {[%clk
0:00:02.8]} 56. Kf3 {[%clk 0:00:05.9]} 56... Qa2 {[%clk 0:00:03.7]} 57. c6
{[%clk 0:00:05]} 57... Qf7+ {[%clk 0:00:03.8]} 58. Kg2 {[%clk 0:00:03.1]} 58...
Qf6 {[%clk 0:00:03.9]} 59. c7 {[%clk 0:00:02.5]} 59... Qc6+ {[%clk 0:00:04.2]}
60. Qf3 {[%clk 0:00:01.8]} 60... Qxc7 {[%clk 0:00:05.1]} 61. Qd5+ {[%clk
0:00:02.2]} 61... Kg7 {[%clk 0:00:05.1]} 62. Qxb5 {[%clk 0:00:03.1]} 62... Qc2+
{[%clk 0:00:05.3]} 63. Kf3 {[%clk 0:00:03.4]} 63... Qd1+ {[%clk 0:00:05.5]} 64.
Qe2 {[%clk 0:00:02.6]} 64... Qb3+ {[%clk 0:00:05.3]} 65. Kf4 {[%clk 0:00:02.9]}
65... Qxa3 {[%clk 0:00:05.1]} 66. Qe5+ {[%clk 0:00:03]} 66... Kf7 {[%clk
0:00:05.3]} 67. Qd5+ {[%clk 0:00:03.1]} 67... Kg7 {[%clk 0:00:05.6]} 68. Qg5+
{[%clk 0:00:03.1]} 68... Kf7 {[%clk 0:00:05.8]} 69. Qf5+ {[%clk 0:00:03.1]}
69... Kg7 {[%clk 0:00:06.3]} 70. Qe4 {[%clk 0:00:02.9]} 70... Qc1+ {[%clk
0:00:05.7]} 71. Kg4 {[%clk 0:00:03.2]} 71... Qd1+ {[%clk 0:00:05.5]} 72. Kg5
{[%clk 0:00:02.9]} 72... Qd8+ {[%clk 0:00:04.9]} 73. Kg4 {[%clk 0:00:02.7]}
73... Qd7+ {[%clk 0:00:05.3]} 74. Kf4 {[%clk 0:00:02.5]} 74... Qd2+ {[%clk
0:00:05.2]} 75. Kg4 {[%clk 0:00:02.8]} 75... Qd1+ {[%clk 0:00:05.3]} 76. Kh4
{[%clk 0:00:02]} 76... Qd8+ {[%clk 0:00:04.4]} 77. Kh3 {[%clk 0:00:01.6]} 77...
Qd7+ {[%clk 0:00:04.1]} 0-1

[Event "Late-Titled-Tuesday-Blitz-December-26-2023"]
[Site "Chess.com"]
[Date "2023.12.26"]
[Round "11"]
[White "IngOscarArdila"]
[Black "TheMagician"]
[Result "1-0"]
[WhiteElo "2318"]
[BlackElo "2179"]
[TimeControl "180+1"]
[EndTime "16:05:27 PST"]
[Termination "IngOscarArdila won on time"]

1. a3 {[%clk 0:02:53.4]} 1... g6 {[%clk 0:02:58.2]} 2. h3 {[%clk 0:02:54.3]}
2... Bg7 {[%clk 0:02:58]} 3. d3 {[%clk 0:02:54.6]} 3... b6 {[%clk 0:02:57.5]} 4.
Nd2 {[%clk 0:02:55.2]} 4... Bb7 {[%clk 0:02:57.3]} 5. e4 {[%clk 0:02:55.9]} 5...
d6 {[%clk 0:02:57.9]} 6. Be2 {[%clk 0:02:55.6]} 6... e6 {[%clk 0:02:58.4]} 7.
Ngf3 {[%clk 0:02:56.1]} 7... Ne7 {[%clk 0:02:58.9]} 8. O-O {[%clk 0:02:56.6]}
8... Nd7 {[%clk 0:02:59.6]} 9. c3 {[%clk 0:02:56.4]} 9... O-O {[%clk 0:03:00.2]}
10. Qc2 {[%clk 0:02:56.7]} 10... a6 {[%clk 0:03:00.4]} 11. b4 {[%clk 0:02:57]}
11... h6 {[%clk 0:03:00.9]} 12. Bb2 {[%clk 0:02:57.4]} 12... d5 {[%clk
0:03:00.4]} 13. Rfd1 {[%clk 0:02:55.5]} 13... c5 {[%clk 0:03:00.6]} 14. Rac1
{[%clk 0:02:54.6]} 14... Rc8 {[%clk 0:03:00.3]} 15. c4 {[%clk 0:02:53.2]} 15...
d4 {[%clk 0:02:55.4]} 16. Nf1 {[%clk 0:02:49.1]} 16... e5 {[%clk 0:02:55.6]} 17.
Rb1 {[%clk 0:02:36.8]} 17... f5 {[%clk 0:02:49.9]} 18. Ng3 {[%clk 0:02:32.1]}
18... f4 {[%clk 0:02:48.2]} 19. Nf1 {[%clk 0:02:31.8]} 19... Bc6 {[%clk
0:02:47.2]} 20. Bc1 {[%clk 0:02:18.7]} 20... g5 {[%clk 0:02:39.3]} 21. a4 {[%clk
0:02:17.8]} 21... Nf6 {[%clk 0:02:30.4]} 22. b5 {[%clk 0:02:12]} 22... axb5
{[%clk 0:02:27.6]} 23. axb5 {[%clk 0:02:12.9]} 23... Bd7 {[%clk 0:02:24.9]} 24.
N1h2 {[%clk 0:02:12.6]} 24... Ng6 {[%clk 0:02:24.7]} 25. Ra1 {[%clk 0:02:11.1]}
25... Rf7 {[%clk 0:02:15.9]} 26. Bb2 {[%clk 0:02:10.6]} 26... Bf8 {[%clk
0:02:16.2]} 27. Ra7 {[%clk 0:02:08.7]} 27... Rc7 {[%clk 0:02:16]} 28. Rda1
{[%clk 0:02:07.9]} 28... Rxa7 {[%clk 0:02:14.1]} 29. Rxa7 {[%clk 0:02:07.9]}
29... Bc8 {[%clk 0:02:12.2]} 30. Qa4 {[%clk 0:02:06.5]} 30... Rxa7 {[%clk
0:02:11.2]} 31. Qxa7 {[%clk 0:02:07.4]} 31... Bd6 {[%clk 0:02:07.3]} 32. Ne1
{[%clk 0:01:59.4]} 32... Qc7 {[%clk 0:02:06.2]} 33. Qa8 {[%clk 0:01:50.9]} 33...
Kg7 {[%clk 0:02:04.8]} 34. Ng4 {[%clk 0:01:47.2]} 34... Qb7 {[%clk 0:01:58.9]}
35. Qa4 {[%clk 0:01:36]} 35... Ne8 {[%clk 0:01:47.1]} 36. Bc1 {[%clk 0:01:29.9]}
36... Bb8 {[%clk 0:01:44.1]} 37. Nf3 {[%clk 0:01:24.7]} 37... h5 {[%clk
0:01:36.6]} 38. Ngh2 {[%clk 0:01:22.3]} 38... Kh6 {[%clk 0:01:27.6]} 39. g4
{[%clk 0:01:14.7]} 39... h4 {[%clk 0:01:22.6]} 40. Kg2 {[%clk 0:01:06.3]} 40...
Qa7 {[%clk 0:01:22.6]} 41. Qxa7 {[%clk 0:01:05.2]} 41... Bxa7 {[%clk 0:01:22.9]}
42. Bd2 {[%clk 0:00:58.5]} 42... Bb8 {[%clk 0:01:22.7]} 43. Kf1 {[%clk
0:00:56.5]} 43... Nf6 {[%clk 0:01:16.4]} 44. Ne1 {[%clk 0:00:54]} 44... Nd7
{[%clk 0:01:16.5]} 45. f3 {[%clk 0:00:48]} 45... Ngf8 {[%clk 0:01:16.1]} 46. Kf2
{[%clk 0:00:47.6]} 46... Ne6 {[%clk 0:01:16.1]} 47. Nf1 {[%clk 0:00:47]} 47...
Nc7 {[%clk 0:01:16.1]} 48. Bd1 {[%clk 0:00:46.4]} 48... Nf6 {[%clk 0:01:16.3]}
49. Bc2 {[%clk 0:00:45.7]} 49... Bd7 {[%clk 0:01:16.5]} 50. Bc1 {[%clk
0:00:42.8]} 50... Nxb5 {[%clk 0:01:11.8]} 51. cxb5 {[%clk 0:00:42]} 51... Bxb5
{[%clk 0:01:12.1]} 52. Bb3 {[%clk 0:00:38.3]} 52... Ne8 {[%clk 0:01:11.6]} 53.
Nd2 {[%clk 0:00:37.7]} 53... Ba6 {[%clk 0:01:04.2]} 54. Ba3 {[%clk 0:00:27.7]}
54... Kg6 {[%clk 0:01:03.3]} 55. Bc4 {[%clk 0:00:24.3]} 55... b5 {[%clk
0:00:55.7]} 56. Bd5 {[%clk 0:00:22]} 56... b4 {[%clk 0:00:54.1]} 57. Bb2 {[%clk
0:00:22.3]} 57... Nc7 {[%clk 0:00:53.4]} 58. Bc4 {[%clk 0:00:22]} 58... Bb7
{[%clk 0:00:51.1]} 59. Nc2 {[%clk 0:00:22.1]} 59... Ne6 {[%clk 0:00:50.5]} 60.
Na1 {[%clk 0:00:21.9]} 60... Kf6 {[%clk 0:00:49.7]} 61. Nab3 {[%clk 0:00:21.4]}
61... Bd6 {[%clk 0:00:44.7]} 62. Bxe6 {[%clk 0:00:20.5]} 62... Kxe6 {[%clk
0:00:44.4]} 63. Nc4 {[%clk 0:00:21.4]} 63... Be7 {[%clk 0:00:44]} 64. Nba5
{[%clk 0:00:19.8]} 64... Ba6 {[%clk 0:00:42.1]} 65. Ke2 {[%clk 0:00:19.3]} 65...
Bb5 {[%clk 0:00:38.9]} 66. Kd2 {[%clk 0:00:19.2]} 66... Ba4 {[%clk 0:00:38]} 67.
Nb6 {[%clk 0:00:18.7]} 67... Bb5 {[%clk 0:00:37.3]} 68. Kc2 {[%clk 0:00:18.4]}
68... Bd8 {[%clk 0:00:32.3]} 69. Nbc4 {[%clk 0:00:17.4]} 69... Bxa5 {[%clk
0:00:30]} 70. Nxa5 {[%clk 0:00:16.8]} 70... Ba4+ {[%clk 0:00:30.4]} 71. Kd2
{[%clk 0:00:14.8]} 71... Bb5 {[%clk 0:00:20.7]} 72. Nb3 {[%clk 0:00:14.7]} 72...
Kd6 {[%clk 0:00:20.3]} 73. Na5 {[%clk 0:00:14.8]} 73... Kc7 {[%clk 0:00:19.6]}
74. Bc1 {[%clk 0:00:14.8]} 74... Kb6 {[%clk 0:00:19.8]} 75. Nb3 {[%clk
0:00:12.9]} 75... Ba4 {[%clk 0:00:19.7]} 76. Na1 {[%clk 0:00:13.1]} 76... Kb5
{[%clk 0:00:19.6]} 77. Bb2 {[%clk 0:00:12.7]} 77... c4 {[%clk 0:00:19.6]} 78.
dxc4+ {[%clk 0:00:12]} 78... Kxc4 {[%clk 0:00:19.9]} 79. Ke2 {[%clk 0:00:10.2]}
79... d3+ {[%clk 0:00:15.8]} 80. Kd2 {[%clk 0:00:10.4]} 80... Bc6 {[%clk
0:00:14.9]} 81. Bxe5 {[%clk 0:00:09.8]} 81... b3 {[%clk 0:00:13.3]} 82. Bf6
{[%clk 0:00:08.9]} 82... Bb7 {[%clk 0:00:07.7]} 83. Nxb3 {[%clk 0:00:08.7]}
83... Kxb3 {[%clk 0:00:06.6]} 84. Bxg5 {[%clk 0:00:09.3]} 84... Kc4 {[%clk
0:00:03.2]} 85. Bxf4 {[%clk 0:00:09]} 85... Kd4 {[%clk 0:00:02.9]} 86. Bg5
{[%clk 0:00:08]} 1-0